bitfinex/quotes_ETHUSD_20250925
["timestamp","ask_amount","ask_price","bid_price","bid_amount"]
[1758785798250,0.0002,4023.1,4023.0,12.07144077]
[1758785800025,0.0002,4023.1,4023.0,7.85944077]
[1758785800231,0.0002,4023.1,4023.0,12.07144077]
[1758785800747,0.0002,4023.1,4023.0,10.44384077]
[1758785802829,0.0004,4023.6,4023.5,2.48539828]
[1758785803172,0.0004,4023.6,4023.5,7.21933956]
[1758785803449,0.0004,4023.6,4023.5,7.19448558]
[1758785804180,1e-08,4023.9,4023.5,8.23588558]
[1758785804387,1e-08,4023.9,4023.8,3.27721298]
[1758785804651,1e-08,4023.9,4023.8,9.68421298]
[1758785804818,1e-08,4023.9,4023.8,12.76279913]
[1758785805023,1e-08,4023.9,4023.8,12.86243583]
[1758785805623,1e-08,4023.9,4023.8,15.86243583]
[1758785807224,1e-08,4023.9,4023.8,15.17513583]
[1758785807556,1e-08,4023.9,4023.8,15.42453583]
[1758785807725,1e-08,4023.9,4023.8,15.86243583]
[1758785809364,1e-08,4023.9,4023.8,15.86243583]
[1758785809524,1e-08,4023.9,4023.8,30.36243583]
[1758785810860,1e-08,4023.9,4023.8,30.36443583]
[1758785811022,0.00100001,4023.9,4023.8,27.60513583]
[1758785811227,0.00100001,4023.9,4023.8,29.67613583]
[1758785811428,0.00100001,4023.9,4023.8,19.60213583]
[1758785811661,0.00100001,4023.9,4023.8,21.42184968]
[1758785811961,0.68990001,4023.9,4023.8,21.42184968]
[1758785813226,0.00100001,4023.9,4023.8,21.42184968]
[1758785814453,0.45860001,4023.9,4023.8,21.42184968]
[1758785814652,0.68990001,4023.9,4023.8,21.42184968]
[1758785815272,0.45860001,4023.9,4023.8,21.42184968]
[1758785815628,0.00100001,4023.9,4023.8,21.42184968]
[1758785816278,0.00100001,4023.9,4023.8,24.06253583]
[1758785816569,0.00100001,4023.9,4023.8,37.66326976]
[1758785817070,0.00100001,4023.9,4023.8,37.22536976]
[1758785817835,0.00100001,4023.9,4023.8,36.18396976]
[1758785818040,0.00100001,4023.9,4023.8,17.21084968]
[1758785818383,0.68990001,4023.9,4023.8,21.42084968]
[1758785818986,0.68990001,4023.9,4023.8,18.8116367]
[1758785820135,0.00100001,4023.9,4023.8,21.29684968]
[1758785820467,0.68990001,4023.9,4023.8,18.8116367]
[1758785821367,0.68990001,4023.9,4023.8,14.502]
[1758785821977,3.17505123,4023.9,4023.8,0.002]
[1758785822277,7.89990001,4023.9,4023.8,0.002]
[1758785822461,12.45605123,4023.9,4023.8,0.002]
[1758785822663,3.68990001,4023.9,4023.8,0.002]
[1758785822880,4.07973883,4023.9,4023.8,0.002]
[1758785824267,6.56489005,4023.9,4023.8,0.002]
[1758785825243,4.07973883,4023.9,4023.8,0.002]
[1758785826456,3.39083883,4023.9,4023.8,0.002]
[1758785826781,4.10623883,4023.9,4023.8,0.002]
[1758785827507,0.39083883,4023.9,4023.8,2.48721298]
[1758785827706,0.39083883,4023.9,4023.8,3.17711298]
[1758785827907,0.39083883,4023.9,4023.8,4.16445641]
[1758785828107,0.00100001,4023.9,4023.8,18.66445641]
[1758785828404,0.00020001,4023.9,4023.8,18.66445641]
[1758785828769,0.00020001,4023.9,4023.8,14.502]
[1758785828970,0.00020001,4023.9,4023.8,18.713]
[1758785829275,0.00020001,4023.9,4023.8,21.43041298]
[1758785829465,0.00020001,4023.9,4023.8,21.88811298]
[1758785830267,0.00020001,4023.9,4023.8,21.19821298]
[1758785830719,0.00020001,4023.9,4023.8,18.712]
[1758785831008,0.00020001,4023.9,4023.8,21.19721298]
[1758785831184,0.00020001,4023.9,4023.8,18.712]
[1758785831519,0.00020001,4023.9,4023.8,21.19721298]
[1758785831806,0.70040001,4023.9,4023.8,18.712]
[1758785832170,0.00020001,4023.9,4023.8,18.712]
[1758785832601,0.00020001,4023.9,4023.8,21.19721298]
[1758785833191,0.00020001,4023.9,4023.8,24.26816756]
[1758785833395,0.00020001,4023.9,4023.8,24.39216756]
[1758785834911,0.00020001,4023.9,4023.8,27.39216756]
[1758785835707,0.00020001,4023.9,4023.8,28.18416756]
[1758785837383,0.00020001,4023.9,4023.8,21.55046756]
[1758785837785,0.00020001,4023.9,4023.8,25.76046756]
[1758785841884,0.00020001,4023.9,4023.8,25.99846756]
[1758785842098,0.00020001,4023.9,4023.8,26.46316756]
[1758785842281,0.00020001,4023.9,4023.8,25.76046756]
[1758785842476,0.00020001,4023.9,4023.8,14.626]
[1758785842680,0.46050001,4023.9,4023.8,14.502]
[1758785842883,0.70040001,4023.9,4023.8,18.712]
[1758785843315,0.70040001,4023.9,4023.8,21.19721298]
[1758785843611,0.70040001,4023.9,4023.8,18.712]
[1758785844113,0.46050001,4023.9,4023.8,18.712]
[1758785844295,0.00020001,4023.9,4023.8,21.19721298]
[1758785844490,0.00020001,4023.9,4023.8,23.45165044]
[1758785844817,0.00020001,4023.9,4023.8,24.15435044]
[1758785845185,0.00020001,4023.9,4023.8,23.68965044]
[1758785845799,0.00020001,4023.9,4023.8,23.45165044]
[1758785846210,0.00020001,4023.9,4023.8,21.19721298]
[1758785848533,0.00020001,4023.9,4023.8,14.502]
[1758785848691,0.00020001,4023.9,4023.8,21.19721298]
[1758785849111,0.00020001,4023.9,4023.8,18.712]
[1758785849312,0.70040001,4023.9,4023.8,18.712]
[1758785849511,1.09015676,4023.9,4023.8,18.712]
[1758785849824,1.09015676,4023.9,4023.8,14.502]
[1758785850618,3.57530798,4023.9,4023.8,14.502]
[1758785850817,3.70040001,4023.9,4023.8,14.502]
[1758785852433,0.00020001,4023.9,4023.8,14.502]
[1758785852620,0.00020001,4023.9,4023.8,16.98721298]
[1758785853606,0.00020001,4023.9,4023.8,17.68991298]
[1758785853807,0.00040001,4024.0,4023.9,2.48515122]
[1758785854034,0.00040001,4024.0,4023.9,7.42270273]
[1758785854331,0.00040001,4024.0,4023.9,7.39785122]
[1758785854707,0.00040001,4024.0,4023.9,21.89785122]
[1758785855706,0.00040001,4024.0,4023.9,24.89785122]
[1758785855917,0.00040001,4024.0,4023.9,27.28913737]
[1758785861546,0.00040001,4024.0,4023.9,26.82443737]
[1758785861837,0.00040001,4024.0,4023.9,26.58643737]
[1758785862040,0.00040001,4024.0,4023.9,27.29503737]
[1758785862946,0.00040001,4024.0,4023.9,27.31483736]
[1758785863718,0.00040001,4024.0,4023.9,29.38483736]
[1758785866752,0.00040001,4024.0,4023.9,22.39623736]
[1758785866932,0.00040001,4024.0,4023.9,28.67623736]
[1758785867330,0.00040001,4024.0,4023.9,29.38483736]
[1758785868428,0.00040001,4024.0,4023.9,28.92443736]
[1758785869075,1e-08,4025.9,4025.8,2.48397833]
[1758785869379,1e-08,4025.9,4025.8,6.81597833]
[1758785869525,1e-08,4025.9,4025.8,7.52457833]
[1758785869722,1e-08,4025.9,4025.8,22.02457833]
[1758785870384,1e-08,4025.9,4025.8,25.81657833]
[1758785870540,1e-08,4025.9,4025.8,27.69197131]
[1758785874271,1e-08,4025.9,4025.8,28.26137131]
[1758785874582,1e-08,4025.9,4025.8,28.50957131]
[1758785874891,1e-08,4025.9,4025.8,28.26137131]
[1758785875039,1e-08,4025.9,4025.8,25.26137131]
[1758785876232,1e-08,4025.9,4025.8,18.98337131]
[1758785876454,1e-08,4025.9,4025.8,23.19037131]
[1758785877167,1e-08,4025.9,4025.8,23.43857131]
[1758785877371,1e-08,4025.9,4025.8,23.19037131]
[1758785878571,1e-08,4025.9,4025.8,23.89897131]
[1758785879284,1e-08,4025.9,4025.8,23.19037131]
[1758785879438,0.02,4026.9,4025.8,23.19037131]
[1758785879439,0.44270001,4026.7,4026.6,2.48348482]
[1758785879639,0.02,4026.9,4026.8,2.48336147]
[1758785879869,0.02,4026.9,4026.8,6.71519508]
[1758785880118,0.02,4026.9,4026.8,21.19036147]
[1758785880388,0.02,4026.9,4026.8,21.31436147]
[1758785881651,0.02,4026.9,4026.8,23.70564762]
[1758785883307,0.02,4026.9,4026.8,23.93144762]
[1758785883507,0.02,4026.9,4026.8,24.40304762]
[1758785883921,0.02,4026.9,4026.8,23.93144762]
[1758785884138,0.02,4026.9,4026.8,24.40304762]
[1758785884332,0.7198,4027.9,4027.8,2.48274492]
[1758785884536,0.7198,4027.9,4027.8,0.02482744]
[1758785884830,0.7198,4027.9,4027.8,2.50757236]
[1758785885033,0.7198,4027.9,4027.8,14.5]
[1758785885338,0.7198,4027.9,4027.8,16.98274492]
[1758785885513,0.02,4027.9,4027.8,16.98274492]
[1758785885717,0.02,4027.9,4027.8,19.36230405]
[1758785886226,0.7198,4027.9,4027.8,21.18874492]
[1758785887032,0.7198,4027.9,4027.8,14.5]
[1758785887335,0.7198,4027.9,4027.8,18.706]
[1758785887537,0.02,4027.9,4027.8,14.5]
[1758785887860,0.02,4027.9,4027.8,24.93454492]
[1758785888004,0.02,4027.9,4027.8,25.40614492]
[1758785888205,0.4093495,4028.9,4028.8,2.48212867]
[1758785888407,0.8728495,4028.9,4028.8,6.69412867]
[1758785888636,0.7198,4028.9,4028.8,2.48212867]
[1758785889145,0.7198,4028.9,4028.7,4.217]
[1758785889447,0.6998,4028.8,4028.6,4.217]
[1758785889743,0.6998,4028.7,4028.6,4.217]
[1758785890245,1.08912089,4028.7,4028.6,4.217]
[1758785890613,1.08912089,4028.7,4028.6,6.69925189]
[1758785891119,0.38932089,4028.7,4028.6,6.69925189]
[1758785891327,0.02,4028.9,4028.8,2.48212867]
[1758785891533,0.6937,4028.9,4028.8,6.69812867]
[1758785891841,0.02,4028.9,4028.8,6.69812867]
[1758785892040,0.02,4028.9,4028.8,7.85946673]
[1758785892248,0.02,4028.9,4028.8,22.11616673]
[1758785892822,0.02,4028.9,4028.8,22.35946673]
[1758785893227,0.02,4028.9,4028.8,22.11616673]
[1758785893722,0.02,4028.9,4028.8,19.63403806]
[1758785893914,0.02,4028.9,4028.8,22.11616673]
[1758785894314,0.02,4028.9,4028.8,18.716]
[1758785894315,0.6937,4028.9,4028.8,18.716]
[1758785894619,0.6937,4028.9,4028.8,21.90692867]
[1758785894620,0.02,4028.9,4028.8,21.90692867]
[1758785894849,0.02,4028.9,4028.8,21.44142867]
[1758785895215,0.02,4028.9,4028.8,21.19812867]
[1758785895416,0.02,4028.9,4028.8,16.98212867]
[1758785895626,0.02,4028.9,4028.8,22.29993865]
[1758785896253,0.02,4028.9,4028.8,21.59313865]
[1758785896452,0.02,4028.9,4028.8,24.83643865]
[1758785896612,0.02,4028.9,4028.8,25.30193865]
[1758785897449,1e-08,4028.9,4028.8,25.30193865]
[1758785897818,1e-08,4028.9,4028.8,22.30193865]
[1758785898352,1e-08,4028.9,4028.8,18.06893865]
[1758785898531,1e-08,4028.9,4028.8,24.37093865]
[1758785899074,1e-08,4028.9,4028.8,23.90543865]
[1758785899294,0.62370001,4029.7,4028.8,15.12130998]
[1758785899439,0.63684172,4029.9,4029.3,0.124]
[1758785899646,0.63684172,4029.9,4029.4,4.234]
[1758785899859,0.2276,4029.8,4029.5,14.5]
[1758785900155,0.2276,4029.7,4029.6,4.234]
[1758785901455,0.6737,4029.7,4029.5,14.5]
[1758785901661,0.6737,4029.6,4029.5,14.5]
[1758785902384,3.792,4029.5,4028.8,0.002]
[1758785902739,0.792,4029.3,4028.8,0.002]
[1758785903339,0.792,4029.1,4028.8,0.002]
[1758785903569,35.09159296,4028.9,4028.8,0.002]
[1758785903775,37.57366002,4028.9,4028.8,0.002]
[1758785903979,38.24736002,4028.9,4028.8,0.002]
[1758785904281,42.06729296,4028.9,4028.8,0.002]
[1758785904877,44.54936002,4028.9,4028.8,0.002]
[1758785905183,4.8550695,4028.9,4028.8,0.002]
[1758785905375,3.3893695,4028.9,4028.8,2.48412867]
[1758785905548,0.3893695,4028.9,4028.8,2.48412867]
[1758785906981,0.3893695,4028.9,4028.8,16.98412867]
[1758785908365,0.3893695,4028.9,4028.8,14.502]
[1758785908973,1.0630695,4028.9,4028.8,14.502]
[1758785909675,0.3893695,4028.9,4028.8,14.502]
[1758785910044,0.3893695,4028.9,4028.8,16.98412867]
[1758785910864,0.2276,4029.1,4028.8,16.98412867]
[1758785911080,0.2276,4029.1,4028.8,14.502]
[1758785911277,0.4461,4029.2,4029.0,2.48200546]
[1758785911776,0.2276,4029.1,4028.8,14.502]
[1758785911977,0.6737,4029.0,4028.8,14.502]
[1758785912180,3.792,4029.4,4028.8,16.98412291]
[1758785912479,0.792,4029.2,4028.9,2.48202969]
[1758785912656,0.792,4029.2,4029.0,2.48199551]
[1758785912861,0.6737,4029.3,4029.0,2.48199551]
[1758785912862,0.6737,4029.1,4029.0,2.48199551]
[1758785913164,0.6737,4029.1,4028.8,14.502]
[1758785913370,0.792,4029.3,4028.8,14.502]
[1758785913371,0.6737,4029.0,4028.8,14.502]
[1758785913681,0.6737,4028.9,4028.8,14.502]
[1758785914101,0.6737,4028.9,4028.8,16.98412867]
[1758785914257,0.6737,4029.2,4028.9,2.48204253]
[1758785914452,0.6737,4029.1,4029.0,2.48200546]
[1758785914858,0.4461,4029.1,4029.0,2.48200546]
[1758785915056,5.6907,4029.4,4029.0,2.48200546]
[1758785915284,0.38930229,4029.1,4029.0,2.48200546]
[1758785915479,0.38930229,4029.1,4028.8,14.502]
[1758785915783,1.01300229,4029.1,4028.8,14.502]
[1758785915981,0.33930229,4029.1,4028.8,14.502]
[1758785916187,0.6737,4029.0,4028.8,14.502]
[1758785916384,0.33930229,4029.1,4028.8,14.502]
[1758785916605,0.33930229,4029.1,4029.0,2.48200546]
[1758785916886,0.33930229,4029.1,4028.8,14.502]
[1758785917088,0.6737,4029.0,4028.8,14.502]
[1758785917299,0.33930229,4029.1,4028.8,14.502]
[1758785917668,1.01300229,4029.1,4028.8,14.502]
[1758785917857,0.001,4028.9,4028.8,19.35505312]
[1758785918063,0.001,4028.9,4028.8,20.06385312]
[1758785918264,0.001,4028.9,4028.8,20.08365311]
[1758785918671,0.001,4028.9,4028.8,20.06385312]
[1758785920580,0.001,4028.9,4028.8,23.06385312]
[1758785923202,0.001,4028.9,4028.8,20.06385312]
[1758785923362,0.001,4028.9,4028.8,26.35185312]
[1758785923694,0.001,4028.9,4028.8,14.502]
[1758785923864,0.7016,4028.9,4028.8,14.502]
[1758785924064,1.09086469,4028.9,4028.8,14.502]
[1758785925156,1.09086469,4028.9,4028.8,16.98412867]
[1758785925662,0.39026469,4028.9,4028.8,16.98412867]
[1758785926089,0.39026469,4028.9,4028.8,19.35326632]
[1758785926267,0.39026469,4028.9,4028.8,20.04976632]
[1758785929091,0.39026469,4028.9,4028.8,19.35326632]
[1758785929592,0.39026469,4028.9,4028.8,19.58136632]
[1758785929775,0.39026469,4028.9,4028.8,20.04976632]
[1758785930185,0.38946469,4028.9,4028.8,20.04976632]
[1758785930378,0.0002,4028.9,4028.8,20.04976632]
[1758785933717,0.0002,4028.9,4028.8,19.70536632]
[1758785934098,0.0002,4028.9,4028.8,20.17376632]
[1758785937615,0.0002,4028.9,4028.8,20.27327883]
[1758785939878,0.0002,4028.9,4028.8,23.27327883]
[1758785940534,0.0002,4028.9,4028.8,27.48727883]
[1758785940818,0.0002,4028.9,4028.8,19.57677883]
[1758785941006,0.0002,4028.9,4028.8,25.85877883]
[1758785941385,0.0002,4028.9,4028.8,25.75926632]
[1758785942024,0.0002,4028.9,4028.8,25.77906631]
[1758785942723,0.0002,4028.9,4028.8,0.002]
[1758785942922,1.4773,4028.9,4028.8,0.002]
[1758785943126,0.6853,4028.9,4028.8,0.002]
[1758785944829,1.07463594,4028.9,4028.8,0.002]
[1758785945189,1.86663594,4028.9,4028.8,0.002]
[1758785945938,4.348703,4028.9,4028.8,0.002]
[1758785946093,7.348703,4028.9,4028.8,0.002]
[1758785946299,11.596703,4028.9,4028.8,0.002]
[1758785946609,13.665703,4028.9,4028.8,0.002]
[1758785946789,7.348703,4028.9,4028.8,0.002]
[1758785946992,42.21102099,4028.9,4028.8,0.002]
[1758785947410,44.69308805,4028.9,4028.8,0.002]
[1758785947596,48.94008805,4028.9,4028.8,0.002]
[1758785948532,9.11363594,4028.9,4028.8,0.002]
[1758785949098,11.595703,4028.9,4028.8,0.002]
[1758785952102,9.11363594,4028.9,4028.8,0.002]
[1758785952421,3.38953594,4028.9,4028.8,0.002]
[1758785952629,3.0002,4028.9,4028.8,0.002]
[1758785952829,4.4614,4028.9,4028.8,0.002]
[1758785953030,3.7922,4028.9,4028.8,0.002]
[1758785953402,0.0002,4028.9,4028.8,2.73002867]
[1758785953710,38.01378505,4028.9,4028.8,0.002]
[1758785953929,38.80578505,4028.9,4028.8,0.002]
[1758785954117,0.7922,4028.9,4028.8,0.002]
[1758785954917,1.4614,4028.9,4028.8,0.002]
[1758785955157,41.80578505,4028.9,4028.8,0.002]
[1758785955455,44.28785211,4028.9,4028.8,0.002]
[1758785955760,44.67640867,4028.9,4028.8,0.002]
[1758785957151,4.84995656,4028.9,4028.8,0.002]
[1758785957849,48.93040867,4028.9,4028.8,0.002]
[1758785958049,9.10395656,4028.9,4028.8,0.002]
[1758785958255,46.44834161,4028.9,4028.8,0.002]
[1758785958457,42.19434161,4028.9,4028.8,0.002]
[1758785958654,46.44634161,4028.9,4028.8,0.002]
[1758785958838,48.92840867,4028.9,4028.8,0.002]
[1758785959629,46.44634161,4028.9,4028.8,0.002]
[1758785960031,48.92840867,4028.9,4028.8,0.002]
[1758785960450,46.44634161,4028.9,4028.8,0.002]
[1758785960645,48.92840867,4028.9,4028.8,0.002]
[1758785961968,48.25920867,4028.9,4028.8,0.002]
[1758785962263,48.92840867,4028.9,4028.8,0.002]
[1758785962759,44.67640867,4028.9,4028.8,0.002]
[1758785962967,48.25520867,4028.9,4028.8,0.002]
[1758785963274,48.92440867,4028.9,4028.8,0.002]
[1758785963637,3.0,4028.8,4028.3,0.002]
[1758785963867,43.61876018,4028.4,4028.3,0.002]
[1758785964034,47.86876018,4028.4,4028.3,0.002]
[1758785964364,48.53796018,4028.4,4028.3,0.002]
[1758785964672,48.53796018,4028.4,4027.9,0.002]
[1758785964673,3.27462164,4028.0,4027.9,0.002]
[1758785964873,12.59262164,4028.0,4027.9,0.002]
[1758785965032,13.26182164,4028.0,4027.9,0.002]
[1758785965237,3.27511481,4027.2,4026.4,14.5]
[1758785965548,49.93849986,4027.2,4026.4,14.5]
[1758785965747,0.792,4027.0,4026.1,0.02]
[1758785965973,47.33258505,4027.2,4026.1,0.02]
[1758785965974,3.792,4026.4,4026.1,0.02]
[1758785966263,0.792,4026.2,4026.1,0.02]
[1758785966843,1.1815844,4026.2,4026.1,0.02]
[1758785967333,4.1815844,4026.2,4026.1,0.02]
[1758785967753,7.33451595,4026.2,4026.1,0.02]
[1758785967952,4.8507844,4026.2,4026.1,0.02]
[1758785968134,7.33451595,4026.2,4026.1,0.02]
[1758785968845,4.8507844,4026.2,4026.1,0.02]
[1758785969043,6.94493155,4026.2,4026.1,0.02]
[1758785969268,4.4612,4026.2,4026.1,0.02]
[1758785969576,6.94493155,4026.2,4026.1,0.02]
[1758785969939,10.7862,4026.2,4026.1,0.02]
[1758785970156,13.26993155,4026.2,4026.1,0.02]
[1758785970612,0.792,4026.0,4025.1,0.02]
[1758785970890,3.792,4025.2,4025.1,0.02]
[1758785971077,10.127,4025.2,4025.1,0.02]
[1758785971686,3.792,4025.2,4025.1,0.02]
[1758785971888,4.18169927,4025.2,4025.1,0.02]
[1758785972058,1.18169927,4025.2,4025.1,0.2659]
[1758785972259,5.056,4025.2,4025.1,0.2659]
[1758785972588,8.056,4025.2,4025.1,0.2659]
[1758785972761,8.7252,4025.2,4025.1,0.02]
[1758785973156,8.055,4025.2,4025.1,0.02]
[1758785973587,3.792,4025.2,4025.1,0.02]
[1758785973790,8.056,4025.2,4025.1,0.02]
[1758785974997,3.792,4025.2,4025.1,0.02]
[1758785975192,3.792,4025.2,4025.1,3.18821032]
[1758785975193,0.38968451,4025.2,4025.1,3.18821032]
[1758785975382,0.38968451,4025.2,4025.1,3.7554843]
[1758785975994,0.38968451,4025.2,4025.1,3.18821032]
[1758785976497,0.38968451,4025.2,4025.1,0.7038]
[1758785977097,0.38968451,4025.2,4025.1,3.18821032]
[1758785977799,0.38968451,4025.2,4025.1,17.68821032]
[1758785979297,5.44168451,4025.2,4025.1,14.52]
[1758785981076,5.44088451,4025.2,4025.1,14.52]
[1758785981501,5.052,4025.2,4025.1,14.52]
[1758785982397,5.052,4025.2,4025.1,0.02]
[1758785982711,8.051,4025.2,4025.1,0.02]
[1758785983617,8.049,4025.2,4025.1,3.17991032]
[1758785984189,3.0,4025.2,4025.1,3.17991032]
[1758785984519,0.3896514,4025.5,4025.4,2.48422517]
[1758785984883,0.3896514,4025.5,4025.4,17.65972517]
[1758785988118,0.3896514,4025.5,4025.4,14.7287]
[1758785988410,0.3896514,4025.5,4025.4,14.5]
[1758785988613,1.1816514,4025.5,4025.4,14.5]
[1758785989623,0.792,4025.4,4025.1,0.02]
[1758785989795,3.792,4025.4,4025.1,0.02]
[1758785990213,0.792,4025.4,4025.2,14.5]
[1758785992235,0.792,4025.2,4025.1,0.02]
[1758785992526,10.5273486,4025.2,4025.1,0.02]
[1758785992908,11.2162486,4025.2,4025.1,0.02]
[1758785993113,8.7319,4025.2,4025.1,0.02]
[1758785993888,8.4837,4025.2,4025.1,0.02]
[1758785994091,8.043,4025.2,4025.1,0.02]
[1758785994538,3.792,4025.2,4025.1,0.02]
[1758785994697,8.041,4025.2,4025.1,0.02]
[1758785995430,8.55689319,4025.2,4025.1,0.02]
[1758785995635,8.041,4025.2,4025.1,0.02]
[1758785996832,3.0,4025.2,4025.1,2.73311032]
[1758785997033,0.001,4026.2,4025.1,0.6955]
[1758785997262,4.248,4026.1,4025.6,2.48408972]
[1758785997452,3.0,4026.0,4025.7,0.6755]
[1758785997758,3.792,4025.8,4025.7,2.93084004]
[1758785998118,3.792,4025.8,4025.7,17.43084004]
[1758785998322,5.04,4025.8,4025.7,17.65954004]
[1758785998532,5.04,4025.8,4025.7,15.1755]
[1758785999485,5.04,4025.8,4025.7,17.65954004]
[1758785999486,8.039,4025.8,4025.7,17.65954004]
[1758785999652,8.039,4025.8,4025.7,15.1755]
[1758786000292,8.039,4025.8,4025.7,14.5]
[1758786000454,8.039,4025.8,4025.7,16.98404004]
[1758786000765,5.038,4025.8,4025.7,17.65954004]
[1758786001555,5.038,4025.8,4025.7,15.1755]
[1758786001754,5.038,4025.8,4025.7,14.5]
[1758786001942,3.792,4025.7,4025.1,0.03979999]
[1758786002152,0.792,4025.5,4025.1,3.23310885]
[1758786002339,4.243,4025.4,4025.3,2.48425407]
[1758786002538,4.243,4025.4,4025.3,2.72415407]
[1758786003178,4.243,4025.4,4025.3,14.5]
[1758786003375,8.7194,4025.4,4025.3,14.5]
[1758786003549,3.792,4025.3,4025.1,0.02]
[1758786003754,8.034,4025.2,4025.1,0.02]
[1758786005287,8.7184,4025.2,4025.1,0.02]
[1758786005483,8.7174,4025.2,4025.1,0.02]
[1758786005803,3.792,4025.2,4025.1,0.02]
[1758786005944,8.037,4025.2,4025.1,0.02]
[1758786006144,8.037,4025.2,4025.1,0.2599]
[1758786006448,2.071,4026.1,4025.4,2.484173]
[1758786006759,2.071,4026.1,4025.5,0.2399]
[1758786006760,3.0,4025.9,4025.5,0.2399]
[1758786006959,3.792,4025.7,4025.6,16.98405154]
[1758786007177,3.792,4025.7,4025.6,17.69295154]
[1758786007495,0.0002,4026.2,4025.9,2.48388278]
[1758786007707,4.247,4026.1,4025.9,2.48388278]
[1758786007852,0.792,4026.0,4025.9,2.48388278]
[1758786008054,5.039,4026.0,4025.9,2.48391663]
[1758786008252,5.039,4026.0,4025.6,15.2089]
[1758786008477,5.039,4026.0,4025.8,2.48392802]
[1758786008685,0.0002,4026.2,4026.0,2.48385494]
[1758786008854,0.0002,4026.2,4026.1,3.19269324]
[1758786009054,0.0002,4026.2,4026.1,3.21753117]
[1758786009284,0.0002,4026.2,4026.1,3.19269324]
[1758786009443,0.0002,4026.2,4026.1,3.9621172]
[1758786009649,0.0002,4026.2,4026.1,3.98695513]
[1758786010052,0.0002,4026.2,4026.1,3.9621172]
[1758786011718,0.0002,4026.2,4025.7,4.34561214]
[1758786011913,0.0002,4026.2,4026.1,2.48379324]
[1758786012100,0.0002,4026.2,4026.1,2.71179324]
[1758786012279,0.0002,4026.2,4026.1,3.16759324]
[1758786013427,0.0002,4026.2,4026.1,0.228]
[1758786013587,0.0002,4026.2,4026.1,2.48379324]
[1758786014330,0.0002,4026.2,4025.7,4.246]
[1758786014882,3.7922,4026.2,4025.6,2.48407818]
[1758786015338,3.7922,4026.2,4025.3,0.228]
[1758786015522,3.7922,4026.2,4025.3,4.469]
[1758786016146,3.7922,4026.2,4025.3,6.95325848]
[1758786016311,3.7922,4026.2,4025.3,4.469]
[1758786016507,0.792,4025.8,4025.1,0.022]
[1758786016806,3.792,4025.6,4025.1,0.022]
[1758786017140,3.792,4025.6,4025.2,2.48431812]
[1758786017341,0.792,4026.0,4025.4,2.48420486]
[1758786017554,3.792,4025.8,4025.4,2.4841807]
[1758786017759,0.792,4026.0,4025.4,0.228]
[1758786017965,3.792,4025.6,4025.5,2.48416345]
[1758786018256,4.24,4025.6,4025.2,0.6838]
[1758786018459,3.2275,4026.9,4025.5,0.228]
[1758786018629,2.071,4026.5,4026.1,2.48379324]
[1758786018826,5.0322,4026.2,4026.1,2.48379324]
[1758786019060,8.0322,4026.2,4026.1,2.48379324]
[1758786019423,5.0322,4026.2,4026.0,2.48379359]
[1758786019624,5.0322,4026.2,4026.1,2.48379324]
[1758786020443,5.0322,4026.2,4026.0,2.48383961]
[1758786020739,5.0322,4026.2,4025.8,2.71192115]
[1758786020939,5.0322,4026.2,4026.1,2.48379324]
[1758786021147,5.0322,4026.2,4026.0,2.48384957]
[1758786021333,5.0322,4026.2,4026.1,2.48379324]
[1758786021732,0.7922,4026.2,4026.1,2.48379324]
[1758786021937,5.0322,4026.2,4026.1,2.48379324]
[1758786022853,4.2402,4026.2,4025.8,0.6838]
[1758786023072,4.2402,4026.2,4025.7,2.48401828]
[1758786023372,4.2362,4026.2,4025.6,2.48409423]
[1758786023671,1.4721,4026.1,4025.1,0.022]
[1758786023873,1.4721,4026.1,4025.1,2.50640079]
[1758786024087,1.4721,4026.1,4025.3,2.48427046]
[1758786024275,1.4721,4026.1,4025.1,2.50640079]
[1758786024276,1.4721,4026.1,4025.4,2.48422036]
[1758786024770,1.4721,4026.1,4025.2,2.48430407]
[1758786024968,1.4721,4026.1,4025.2,2.4843486]
[1758786025131,1.4721,4026.1,4025.3,2.48426147]
[1758786025532,1.4721,4026.1,4025.4,2.48420896]
[1758786026071,1.4721,4026.1,4025.2,2.4843486]
[1758786026266,1.4721,4026.1,4025.1,2.73440806]
[1758786026471,1.4721,4026.1,4025.1,0.25]
[1758786026623,4.234,4026.0,4025.7,2.48400099]
[1758786026829,0.792,4025.9,4025.8,2.71192168]
[1758786027061,4.234,4026.0,4025.9,2.71187896]
[1758786027626,4.234,4026.0,4025.9,0.228]
[1758786027826,4.234,4026.0,4025.9,2.71191663]
[1758786028026,0.0002,4026.2,4026.0,2.48380374]
[1758786028236,0.0002,4026.2,4026.1,2.48379324]
[1758786028558,0.0002,4026.2,4026.1,3.16759324]
[1758786028758,0.0002,4026.2,4025.9,2.48387539]
[1758786028958,0.0002,4026.2,4026.0,2.48381569]
[1758786029257,0.0002,4026.2,4025.9,3.16770936]
[1758786029765,0.0002,4026.2,4026.0,0.228]
[1758786029964,0.0002,4026.2,4026.1,2.48379324]
[1758786030664,0.0002,4026.2,4026.1,2.71179324]
[1758786030962,0.0002,4026.2,4026.1,0.228]
[1758786031267,0.0002,4026.2,4026.1,2.48379324]
[1758786032045,4.2314,4026.4,4026.1,2.48373836]
[1758786032241,4.23,4026.4,4026.0,0.02483854]
[1758786032537,4.23,4026.4,4026.2,2.48372104]
[1758786033127,4.23,4026.4,4026.3,2.48366987]
[1758786033634,4.23,4026.4,4026.1,2.71175311]
[1758786033834,4.23,4026.4,4026.2,2.48371772]
[1758786034033,4.23,4026.4,4026.3,2.48366987]
[1758786035666,4.23,4026.4,4026.1,0.228]